fUST/lending_fUST_20250212
["ID","MTS","AMOUNT","RATE_DAILY","PERIOD"]
[352842526,1739361035819,-849.5,0.00012331,2]
[352842527,1739361035828,-500.0,0.00012331,2]
[352842528,1739361035838,-500.0,0.00012332,2]
[352842529,1739361035849,-780.13,0.00012332,2]
[352842530,1739361035859,-3405.76,0.00012332,2]
[352842531,1739361035868,-8278.87,0.00012332,2]
[352842532,1739361035877,-500.0,0.00012332,2]
[352842533,1739361035887,-3303.51,0.00012332,2]
[352842534,1739361035896,-500.0,0.00012468,2]
[352842535,1739361035906,-1211.58,0.00012468,2]
[352842536,1739361035916,-778.94,0.00012468,2]
[352842537,1739361035926,-500.0,0.00012468,2]
[352842538,1739361035935,-849.5,0.00012468,2]
[352842539,1739361035946,-500.0,0.00012468,2]
[352842540,1739361035955,-500.0,0.00012469,2]
[352842541,1739361035965,-780.13,0.00012469,2]
[352842542,1739361035975,-3405.76,0.00012469,2]
[352842543,1739361035985,-8278.87,0.00012469,2]
[352842544,1739361035996,-500.0,0.00012469,2]
[352842545,1739361036006,-3303.51,0.00012469,2]
[352842546,1739361036016,-313.70317268,0.00012535,2]
[352842547,1739361036025,-500.0,0.00012604,2]
[352842548,1739361036034,-312.22005527,0.00012604,2]
[352842549,1739361036045,-500.0,0.00012605,2]
[352842550,1739361036055,-1211.58,0.00012605,2]
[352842551,1739361036065,-778.94,0.00012605,2]
[352842552,1739361036075,-500.0,0.00012605,2]
[352842553,1739361036086,-849.5,0.00012605,2]
[352842554,1739361036096,-500.0,0.00012605,2]
[352842555,1739361036105,-500.0,0.00012606,2]
[352842556,1739361036114,-780.13,0.00012606,2]
[352842557,1739361036123,-3405.76,0.00012606,2]
[352842558,1739361036134,-8278.87,0.00012606,2]
[352842559,1739361036143,-500.0,0.00012606,2]
[352842560,1739361036153,-3303.51,0.00012606,2]
[352842561,1739361036162,-1000.0,0.00012693,2]
[352842562,1739361036171,-500.0,0.00012742,2]
[352842563,1739361036180,-1211.58,0.00012742,2]
[352842564,1739361036190,-778.94,0.00012742,2]
[352842565,1739361036199,-500.0,0.00012742,2]
[352842566,1739361036208,-849.5,0.00012742,2]
[352842567,1739361036218,-500.0,0.00012742,2]
[352842568,1739361036229,-500.0,0.00012743,2]
[352842569,1739361036238,-780.13,0.00012743,2]
[352842570,1739361036248,-3405.76,0.00012743,2]
[352842571,1739361036257,-8278.87,0.00012743,2]
[352842572,1739361036268,-500.0,0.00012743,2]
[352842573,1739361036278,-3303.51,0.00012743,2]
[352842574,1739361036288,-3000.0,0.00012779,2]
[352842575,1739361036297,-500.0,0.00012879,2]
[352842576,1739361036307,-1211.58,0.00012879,2]
[352842577,1739361036316,-778.94,0.00012879,2]
[352842578,1739361036326,-500.0,0.00012879,2]
[352842579,1739361036335,-849.5,0.00012879,2]
[352842580,1739361036345,-500.0,0.00012879,2]
[352842581,1739361036356,-500.0,0.0001288,2]
[352842582,1739361036367,-780.13,0.0001288,2]
[352842583,1739361036376,-3405.76,0.0001288,2]
[352842584,1739361036387,-8278.87,0.0001288,2]
[352842585,1739361036397,-500.0,0.0001288,2]
[352842586,1739361036408,-3303.51,0.0001288,2]
[352842587,1739361036418,-274.17586292,0.000129,2]
[352842588,1739361036428,-274.17586286,0.000129,2]
[352842589,1739361036439,-274.17586286,0.000129,2]
[352842590,1739361036448,-500.0,0.00013016,2]
[352842591,1739361036457,-1211.58,0.00013016,2]
[352842592,1739361036467,-778.94,0.00013016,2]
[352842593,1739361036476,-625.25,0.00013016,2]
[352842594,1739361036485,-849.5,0.00013016,2]
[352842595,1739361036495,-500.0,0.00013016,2]
[352842596,1739361036507,-500.0,0.00013017,2]
[352842597,1739361036517,-780.13,0.00013017,2]
[352842598,1739361036527,-3405.76,0.00013017,2]
[352842599,1739361036536,-1283.90957585,0.00013017,2]
[352842600,1739361036552,-6994.96042415,0.00013017,2]
[352842601,1739361036563,-550.71782568,0.00013017,2]
[352842602,1739361036572,-3303.51,0.00013017,2]
[352842603,1739361036581,-500.0,0.0001308,2]
[352842604,1739361036590,-500.0,0.00013121,2]
[352842605,1739361036600,-500.0,0.00013153,2]
[352842606,1739361036610,-1211.58,0.00013153,2]
[352842607,1739361036619,-778.94,0.00013153,2]
[352842608,1739361036628,-849.5,0.00013153,2]
[352842609,1739361036638,-500.0,0.00013153,2]
[352842610,1739361036647,-500.0,0.00013154,2]
[352842611,1739361036657,-780.13,0.00013154,2]
[352842612,1739361036666,-3405.76,0.00013154,2]
[352842613,1739361036676,-8278.87,0.00013154,2]
[352842614,1739361036685,-3303.51,0.00013154,2]
[352842615,1739361036696,-500.0,0.0001329,2]
[352842616,1739361036706,-1211.58,0.0001329,2]
[352842617,1739361036715,-778.94,0.0001329,2]
[352842618,1739361036724,-849.5,0.0001329,2]
[352842619,1739361036734,-500.0,0.0001329,2]
[352842620,1739361036743,-500.0,0.00013291,2]
[352842621,1739361036753,-780.13,0.00013291,2]
[352842622,1739361036763,-3405.76,0.00013291,2]
[352842623,1739361036776,-8278.87,0.00013291,2]
[352842624,1739361036786,-3303.51,0.00013291,2]
[352842625,1739361036796,-500.0,0.00013427,2]
[352842626,1739361036805,-1211.58,0.00013427,2]
[352842627,1739361036816,-778.94,0.00013427,2]
[352842628,1739361036826,-849.5,0.00013427,2]
[352842629,1739361036836,-500.0,0.00013427,2]
[352842630,1739361036848,-500.0,0.00013428,2]
[352842631,1739361036859,-780.13,0.00013428,2]
[352842632,1739361036868,-3405.76,0.00013428,2]
[352842633,1739361036877,-8278.87,0.00013428,2]
[352842634,1739361036887,-3303.51,0.00013428,2]
[352842635,1739361036896,-274.17586286,0.00013479,2]
[352842636,1739361036906,-247.36000001,0.00013564,2]
[352842637,1739361036916,-1211.58,0.00013564,2]
[352842638,1739361036926,-778.94,0.00013564,2]
[352842639,1739361036936,-849.5,0.00013564,2]
[352842640,1739361036949,-500.0,0.00013564,2]
[352842641,1739361036959,-156.34016902,0.00013565,2]
[352842642,1739361036969,-780.13,0.00013565,2]
[352842643,1739361036979,-3405.76,0.00013565,2]
[352842644,1739361036990,-8278.87,0.00013565,2]
[352842645,1739361037000,-3303.51,0.00013565,2]
[352842646,1739361037010,-500.0,0.00013695,2]
[352842647,1739361037020,-1000.0,0.00013698,2]
[352842648,1739361037030,-1084.16513233,0.00013698,2]
[352842649,1739361037041,-500.23501456,0.00013698,2]
[352842650,1739361037052,-785.347912,0.00013699,2]
[352842651,1739361037062,-153.0,0.00013699,2]
[352842652,1739361037071,-153.0,0.00013699,2]
[352842653,1739361037082,-153.0,0.00013699,2]
[352842654,1739361037091,-1570.74257,0.00013699,2]
[352842655,1739361037101,-1211.58,0.00013701,2]
[352842656,1739361037110,-778.94,0.00013701,2]
[352842657,1739361037120,-849.5,0.00013701,2]
[352842658,1739361037130,-500.0,0.00013701,2]
[352842659,1739361037140,-780.13,0.00013702,2]
[352842660,1739361037150,-3405.76,0.00013702,2]
[352842661,1739361037159,-8278.87,0.00013702,2]
[352842662,1739361037169,-151.0,0.00013702,2]
[352842663,1739361037179,-151.0,0.00013702,2]
[352842664,1739361037190,-157.848758,0.00013702,2]
[352842665,1739361037200,-157.848758,0.00013702,2]
[352842666,1739361037210,-151.0,0.00013702,2]
[352842667,1739361037220,-3303.51,0.00013702,2]
[352842668,1739361037230,-151.0,0.00013702,2]
[352842669,1739361037239,-151.0,0.00013702,2]
[352842670,1739361037248,-151.0,0.00013702,2]
[352842671,1739361037258,-151.0,0.00013702,2]
[352842672,1739361037267,-151.0,0.00013702,2]
[352842673,1739361037277,-151.01526129,0.00013748,2]
[352842674,1739361037286,-500.0,0.00013777,2]
[352842675,1739361037295,-1211.58,0.00013838,2]
[352842676,1739361037305,-778.94,0.00013838,2]
[352842677,1739361037315,-849.5,0.00013838,2]
[352842678,1739361037326,-500.0,0.00013838,2]
[352842679,1739361037336,-780.13,0.00013839,2]
[352842680,1739361037346,-3405.76,0.00013839,2]
[352842681,1739361037356,-151.0,0.00013839,2]
[352842682,1739361037366,-151.0,0.00013839,2]
[352842683,1739361037375,-151.0,0.00013839,2]
[352842684,1739361037385,-8278.87,0.00013839,2]
[352842685,1739361037395,-151.0,0.00013839,2]
[352842686,1739361037406,-3303.51,0.00013839,2]
[352842687,1739361037415,-151.478029,0.00013839,2]
[352842688,1739361037424,-151.0,0.00013839,2]
[352842689,1739361037434,-1211.58,0.00013975,2]
[352842690,1739361037444,-778.94,0.00013975,2]
[352842691,1739361037454,-849.5,0.00013975,2]
[352842692,1739361037463,-500.0,0.00013975,2]
[352842693,1739361037473,-780.13,0.00013976,2]
[352842694,1739361037483,-3405.76,0.00013976,2]
[352842695,1739361037492,-8278.87,0.00013976,2]
[352842696,1739361037501,-3303.51,0.00013976,2]
[352842697,1739361037510,-358.687,0.0001399,2]
[352842698,1739361037520,-151.0,0.00014,2]
[352842699,1739361037529,-152.985596,0.00014,2]
[352842700,1739361037539,-2606.52183993,0.00014,2]
[352842701,1739361037549,-500.0,0.00014035,2]
[352842702,1739361037558,-1211.63799387,0.00014112,2]
[352842703,1739361037567,-779.11928305,0.00014112,2]
[352842704,1739361037577,-849.56,0.00014112,2]
[352842705,1739361037587,-206.00816761,0.00014112,2]
[352842706,1739361037596,-780.32549507,0.00014113,2]
[352842707,1739361037606,-3405.97659106,0.00014113,2]
[352842708,1739361037615,-8278.95776913,0.00014113,2]
[352842709,1739361037625,-3303.69527526,0.00014113,2]
[352842710,1739361037635,-500.0,0.0001416,2]
[352842711,1739361037644,-709.8219952,0.00014164,2]
[352842712,1739361037654,-709.8219952,0.00014164,2]
[352842713,1739361037664,-588.07522729,0.00014324,2]
[352842714,1739361037674,-274.17586286,0.00014351,2]
[352842715,1739361037684,-162.56897,0.00014373,5]
[352842716,1739361037695,-588.07522729,0.00014424,2]
[352842717,1739361037705,-500.0,0.0001445,2]
[352842718,1739361037714,-588.07522729,0.00014524,2]
[352842719,1739361037724,-215.8799648,0.00014575,2]
[352842720,1739361037734,-156.1536286,0.00014575,2]
[352842721,1739361037744,-215.8799648,0.00014575,2]
[352842722,1739361037756,-306.3457281,0.00014575,2]
[352842723,1739361037767,-154.6337486,0.00014575,2]
[352842724,1739361037780,-215.8799648,0.00014575,2]
[352842725,1739361037790,-215.8799648,0.00014575,2]
[352842726,1739361037800,-154.6337486,0.00014575,2]
[352842727,1739361037811,-821.83557422,0.00014583,2]
[352842728,1739361037821,-588.07522729,0.00014624,2]
[352842729,1739361037831,-1000.0,0.00014708,2]
[352842730,1739361037842,-588.07522729,0.00014724,2]
[352842731,1739361037852,-588.07522729,0.00014824,2]
[352842732,1739361037862,-154.0,0.0001486,2]
[352842733,1739361037872,-154.0,0.0001486,2]
[352842734,1739361037882,-154.0,0.0001486,2]
[352842735,1739361037891,-154.0,0.0001486,2]
[352842736,1739361037902,-154.0,0.0001486,2]
[352842737,1739361037912,-154.0,0.0001486,2]
[352842738,1739361037922,-154.0,0.0001486,2]
[352842739,1739361037931,-154.0,0.0001486,2]
[352842740,1739361037942,-154.0,0.0001486,2]
[352842741,1739361037952,-154.0,0.0001486,2]
[352842742,1739361038070,-154.0,0.0001486,2]
[352842743,1739361038080,-155.0,0.0001486,2]
[352842744,1739361038090,-154.0,0.0001486,2]
[352842745,1739361038099,-154.0,0.0001486,2]
[352842746,1739361038109,-154.0,0.0001486,2]
[352842747,1739361038118,-154.0,0.0001486,2]
[352842748,1739361038129,-154.0,0.0001486,2]
[352842749,1739361038139,-154.0,0.0001486,2]
[352842750,1739361038149,-154.0,0.0001486,2]
[352842751,1739361038159,-154.0,0.0001486,2]
[352842752,1739361038170,-154.0,0.0001486,2]
[352842753,1739361038180,-160.01,0.0001486,2]
[352842754,1739361038191,-546.25109229,0.000149,2]
[352842755,1739361038201,-173.70269212,0.000149,2]
[352842756,1739361038210,-588.07522729,0.00014924,2]
[352842757,1739361038219,-2170.67588529,0.00015,5]
[352842758,1739361038231,-225350.68885234,0.00015,2]
[352842779,1739361038684,-599.65,0.00011098,2]
[352842780,1739361038694,-599.65,0.00011235,2]
[352842781,1739361038703,-599.65,0.00011372,2]
[352842782,1739361038713,-599.65,0.00011509,2]
[352842783,1739361038725,-180.87574686,0.00011509,2]
[352842784,1739361038735,-500.0,0.00011509,2]
[352842785,1739361038744,-500.0,0.00011509,2]
[352842786,1739361038755,-171.12678986,0.00011509,2]
[352842787,1739361038764,-599.65,0.00011646,2]
[352842788,1739361038776,-599.65,0.00011783,2]
[352842790,1739361038786,-599.65,0.0001192,2]
[352842791,1739361038797,-599.65,0.00012057,2]
[352842792,1739361038805,-599.65,0.00012194,2]
[352842793,1739361038815,-599.65,0.00012331,2]
[352842794,1739361038825,-599.65,0.00012468,2]
[352842795,1739361038836,-599.65,0.00012605,2]
[352842796,1739361038847,-599.65,0.00012742,2]
[352842797,1739361038857,-599.65,0.00012879,2]
[352842798,1739361038866,-599.65,0.00013016,2]
[352842799,1739361038876,-599.65,0.00013153,2]
[352842800,1739361038886,-599.65,0.0001329,2]
[352842801,1739361038897,-599.65,0.00013427,2]
[352842802,1739361038907,-599.65,0.00013564,2]
[352842803,1739361038917,-500.0,0.00013699,2]
[352842804,1739361038926,-500.0,0.00013699,2]
[352842805,1739361038938,-500.0,0.00013699,2]
[352842806,1739361038947,-500.0,0.00013699,2]
[352842807,1739361038956,-500.0,0.00013699,2]
[352842808,1739361038965,-500.0,0.00013699,2]
[352842809,1739361038976,-500.0,0.00013699,2]
[352842810,1739361038985,-500.0,0.00013699,2]
[352842811,1739361038997,-500.0,0.00013699,2]
[352842812,1739361039006,-500.0,0.00013699,2]
[352842813,1739361039016,-500.0,0.00013699,2]
[352842814,1739361039026,-500.0,0.00013699,2]
[352842815,1739361039035,-500.0,0.00013699,2]
[352842816,1739361039044,-500.0,0.00013699,2]
[352842817,1739361039054,-500.0,0.00013699,2]
[352842818,1739361039063,-500.0,0.00013699,2]
[352842819,1739361039074,-500.0,0.00013699,2]
[352842820,1739361039083,-500.0,0.00013699,2]
[352842821,1739361039093,-500.0,0.00013699,2]
[352842822,1739361039102,-500.0,0.00013699,2]
[352842823,1739361039111,-500.0,0.00013699,2]
[352842824,1739361039120,-500.0,0.00013699,2]
[352842825,1739361039130,-500.0,0.00013699,2]
[352842826,1739361039141,-500.0,0.00013699,2]
[352842827,1739361039151,-500.0,0.00013699,2]
[352842828,1739361039163,-500.0,0.00013699,2]
[352842829,1739361039174,-500.0,0.00013699,2]
[352842830,1739361039183,-500.0,0.00013699,2]
[352842831,1739361039193,-500.0,0.00013699,2]
[352842832,1739361039203,-500.0,0.00013699,2]
[352842833,1739361039212,-500.0,0.00013699,2]
[352842834,1739361039223,-500.0,0.00013699,2]
[352842835,1739361039232,-500.0,0.00013699,2]
[352842836,1739361039242,-500.0,0.00013699,2]
[352842837,1739361039252,-500.0,0.00013699,2]
[352842838,1739361039261,-500.0,0.00013699,2]
[352842839,1739361039271,-327.09668945,0.00013699,2]
[352842840,1739361039282,-500.0,0.00013699,2]
[352842841,1739361039295,-500.0,0.00013699,2]
[352842842,1739361039308,-500.0,0.00013699,2]
[352842843,1739361039318,-500.0,0.00013699,2]
[352842844,1739361039327,-500.0,0.00013699,2]
[352842845,1739361039337,-500.0,0.00013699,2]
[352842846,1739361039346,-599.65,0.00013701,2]
[352842847,1739361039355,-599.65,0.00013838,2]
[352842848,1739361039364,-26392.38625345,0.00015,2]
[352842849,1739361039376,-588055.48478961,0.00015,2]
[352842852,1739361040870,-307.64636734,0.00015,2]
[352842853,1739361040905,-599.65,0.00013975,2]
[352842854,1739361040915,-444.81308297,0.00014112,2]
[352842884,1739361958123,-336.22130197,0.00010263,2]
[352842885,1739362027081,-400.0,0.00010685,2]
[352842886,1739362027104,-50.0,0.00010958,2]
[352842887,1739362031179,-250.0,0.00010958,2]
[352842888,1739362031201,-500.0,0.00010959,2]
[352842889,1739362031226,-500.0,0.00010959,2]
[352842890,1739362031248,-500.0,0.00010959,2]
[352842891,1739362031282,-503.0558322,0.00010959,2]
[352842892,1739362031306,-500.0,0.00010959,2]
[352842893,1739362031329,-500.0,0.00010959,2]
[352842894,1739362031352,-500.0,0.0001096,2]
[352842895,1739362031374,-500.0,0.0001096,2]
[352842896,1739362031397,-501.75703181,0.0001096,2]
[352842897,1739362031418,-502.04530904,0.0001096,2]
[352842898,1739362031440,-500.0,0.0001096,2]
[352842899,1739362031464,-581.17933971,0.0001096,2]
[352842900,1739362031486,-286.50419672,0.0001096,2]
[352842901,1739362038099,-245.17781684,0.00010959,2]
[352842902,1739362164112,-300.0,0.00010958,2]
[352842903,1739362164134,-254.82218316,0.00010959,2]
[352842904,1739362164157,-500.0,0.00010959,2]
[352842905,1739362164184,-500.0,0.00010959,2]
[352842906,1739362164207,-500.0,0.00010959,2]
[352842907,1739362164231,-500.0,0.00010959,2]
[352842908,1739362164252,-500.0,0.00010959,2]
[352842909,1739362164278,-500.0,0.00010959,2]
[352842910,1739362164303,-500.0,0.00010959,2]
[352842911,1739362164328,-500.0,0.00010959,2]
[352842912,1739362164351,-467.9,0.00010959,2]
[352842913,1739362164373,-500.0,0.00010959,2]
[352842914,1739362164395,-500.0,0.00010959,2]
[352842915,1739362164418,-500.0,0.00010959,2]
[352842916,1739362164440,-500.0,0.00010959,2]
[352842917,1739362164463,-298.46,0.00010959,2]
[352842918,1739362164486,-500.0,0.00010959,2]
[352842919,1739362164522,-213.49580328,0.0001096,2]
[352842920,1739362164546,-507.20707268,0.0001096,2]
[352842921,1739362164570,-500.91212247,0.0001096,2]
[352842922,1739362164593,-500.0,0.0001096,2]
[352842923,1739362164618,-500.0,0.0001096,2]
[352842924,1739362164640,-500.0,0.0001096,2]
[352842925,1739362164663,-500.0,0.0001096,2]
[352842926,1739362164687,-500.0,0.0001096,2]
[352842927,1739362164712,-500.0,0.0001096,2]
[352842928,1739362164735,-500.0,0.0001096,2]
[352842929,1739362164757,-500.0,0.0001096,2]
[352842930,1739362164781,-500.0,0.0001096,2]
[352842931,1739362164806,-500.0,0.0001096,2]
[352842932,1739362164828,-513.82727135,0.0001096,2]
[352842933,1739362164849,-500.0,0.0001096,2]
[352842934,1739362164872,-500.0,0.0001096,2]
[352842935,1739362164894,-500.0,0.0001096,2]
[352842936,1739362164916,-500.0,0.0001096,2]
[352842937,1739362164940,-500.0,0.0001096,2]
[352842938,1739362164963,-500.0,0.0001096,2]
[352842939,1739362164987,-500.0,0.0001096,2]
[352842940,1739362165010,-500.0,0.0001096,2]
[352842941,1739362165032,-500.0,0.0001096,2]
[352842942,1739362165055,-500.0,0.0001096,2]
[352842943,1739362165076,-500.0,0.0001096,2]
[352842944,1739362165098,-500.0,0.0001096,2]
[352842945,1739362165119,-500.0,0.0001096,2]
[352842946,1739362165141,-500.0,0.0001096,2]
[352842947,1739362165161,-500.0,0.0001096,2]
[352842948,1739362165186,-500.0,0.0001096,2]
[352842949,1739362165207,-500.0,0.0001096,2]
[352842950,1739362165228,-500.0,0.0001096,2]
[352842951,1739362165250,-500.0,0.0001096,2]
[352842952,1739362165276,-185.44803579,0.0001096,2]
[352842953,1739362165299,-500.0,0.0001096,2]
[352842954,1739362165323,-500.0,0.0001096,2]
[352842955,1739362165346,-500.0,0.0001096,2]
[352842956,1739362165369,-500.0,0.0001096,2]
[352842957,1739362165392,-500.0,0.0001096,2]
[352842958,1739362165414,-500.0,0.0001096,2]
[352842959,1739362165439,-500.0,0.0001096,2]
[352842960,1739362165463,-500.0,0.0001096,2]
[352842961,1739362165484,-500.0,0.0001096,2]
[352842962,1739362165505,-500.0,0.0001096,2]
[352842963,1739362165526,-203.06655434,0.0001096,2]
[352842964,1739362165551,-500.0,0.0001096,2]
[352842965,1739362165573,-500.0,0.0001096,2]
[352842966,1739362165595,-500.0,0.0001096,2]
[352842967,1739362165616,-500.0,0.0001096,2]
[352842968,1739362165640,-500.0,0.0001096,2]
[352842969,1739362165662,-500.0,0.0001096,2]
[352842970,1739362165684,-500.0,0.0001096,2]
[352842971,1739362165707,-500.0,0.0001096,2]
[352842972,1739362165730,-500.0,0.0001096,2]
[352842973,1739362165754,-500.0,0.0001096,2]
[352842974,1739362165776,-500.0,0.0001096,2]
[352842975,1739362165798,-500.0,0.0001096,2]
[352842976,1739362165823,-500.0,0.0001096,2]
[352842977,1739362165845,-500.0,0.0001096,2]
[352842978,1739362165867,-500.0,0.0001096,2]
[352842979,1739362165888,-500.0,0.0001096,2]
[352842980,1739362165912,-500.0,0.0001096,2]
[352842981,1739362165934,-500.0,0.0001096,2]
[352842982,1739362165957,-500.0,0.0001096,2]
[352842983,1739362165980,-500.0,0.0001096,2]
[352842984,1739362166001,-500.0,0.0001096,2]
[352842985,1739362166022,-500.0,0.0001096,2]
[352842986,1739362166047,-500.0,0.0001096,2]
[352842987,1739362166071,-500.0,0.0001096,2]
[352842988,1739362166093,-501.64554693,0.0001096,2]
[352842989,1739362166113,-500.0,0.0001096,2]
[352842990,1739362166135,-500.0,0.0001096,2]
[352842991,1739362166159,-500.0,0.0001096,2]
[352842992,1739362166186,-500.0,0.0001096,2]
[352842993,1739362166209,-500.0,0.0001096,2]
[352842994,1739362166233,-500.0,0.0001096,2]
[352842995,1739362166261,-500.0,0.0001096,2]
[352842996,1739362166282,-500.0,0.0001096,2]
[352842997,1739362166304,-500.0,0.0001096,2]
[352842998,1739362166327,-500.0,0.0001096,2]
[352842999,1739362166352,-620.67284341,0.0001096,2]
[352843000,1739362166374,-500.0,0.0001096,2]
[352843001,1739362166399,-500.0,0.0001096,2]
[352843002,1739362166419,-500.0,0.0001096,2]
[352843003,1739362166440,-500.0,0.0001096,2]
[352843004,1739362166461,-500.0,0.0001096,2]
[352843005,1739362166483,-500.0,0.0001096,2]
[352843006,1739362166504,-500.0,0.0001096,2]
[352843007,1739362166527,-500.0,0.0001096,2]
[352843008,1739362166547,-500.0,0.0001096,2]
[352843009,1739362166568,-500.0,0.0001096,2]
[352843010,1739362166591,-500.0,0.0001096,2]
[352843011,1739362166613,-500.0,0.0001096,2]
[352843012,1739362166636,-500.0,0.0001096,2]
[352843013,1739362166659,-500.0,0.0001096,2]
[352843014,1739362166828,-500.0,0.0001096,2]
[352843015,1739362166849,-500.0,0.0001096,2]
[352843016,1739362166872,-679.15,0.0001096,2]
[352843017,1739362166893,-500.0,0.0001096,2]
[352843018,1739362166915,-500.0,0.0001096,2]
[352843019,1739362166937,-500.0,0.0001096,2]
[352843020,1739362166958,-500.0,0.0001096,2]
[352843021,1739362166980,-500.0,0.0001096,2]
[352843022,1739362167002,-500.0,0.0001096,2]
[352843023,1739362167022,-500.0,0.0001096,2]
[352843024,1739362167043,-500.0,0.0001096,2]
[352843025,1739362167063,-500.0,0.0001096,2]
[352843026,1739362167084,-500.0,0.0001096,2]
[352843027,1739362167105,-500.0,0.0001096,2]
[352843028,1739362167126,-500.0,0.0001096,2]
[352843029,1739362167146,-500.0,0.0001096,2]
[352843030,1739362167167,-394.04247695,0.0001096,2]
[352843031,1739362167192,-2429.04,0.0001096,2]
[352843032,1739362167212,-500.0,0.0001096,2]
[352843033,1739362167234,-500.0,0.0001096,2]
[352843034,1739362167258,-500.0,0.0001096,2]
[352843035,1739362167282,-500.0,0.0001096,2]
[352843036,1739362167305,-500.0,0.0001096,2]
[352843037,1739362167327,-297.26990718,0.0001096,2]
[352843038,1739362167350,-539.40651127,0.0001096,2]
[352843039,1739362167373,-500.0,0.0001096,2]
[352843040,1739362167396,-500.0,0.0001096,2]
[352843041,1739362167418,-500.0,0.0001096,2]
[352843042,1739362167438,-500.0,0.0001096,2]
[352843043,1739362167460,-500.0,0.0001096,2]
[352843044,1739362167482,-500.0,0.0001096,2]
[352843045,1739362167503,-500.0,0.0001096,2]
[352843046,1739362167523,-500.0,0.0001096,2]
[352843047,1739362167544,-500.0,0.0001096,2]
[352843048,1739362167564,-500.0,0.0001096,2]
[352843049,1739362167586,-500.0,0.0001096,2]
[352843050,1739362167607,-500.0,0.0001096,2]
[352843051,1739362167628,-500.0,0.0001096,2]
[352843052,1739362167649,-500.0,0.0001096,2]
[352843053,1739362167671,-500.0,0.0001096,2]
[352843054,1739362167692,-500.0,0.0001096,2]
[352843055,1739362167713,-500.0,0.0001096,2]
[352843056,1739362167734,-500.0,0.0001096,2]
[352843057,1739362167756,-500.0,0.0001096,2]
[352843058,1739362167780,-500.0,0.0001096,2]
[352843059,1739362167801,-500.0,0.0001096,2]
[352843060,1739362167825,-1039.45,0.0001096,2]
[352843061,1739362167847,-500.0,0.00010961,2]
[352843062,1739362167870,-500.0,0.00010961,2]
[352843063,1739362167891,-373.35901399,0.00010961,2]
[352843064,1739362167911,-336.88938994,0.00010961,2]
[352843065,1739362167933,-500.0,0.00010961,2]
[352843066,1739362167955,-500.0,0.00010961,2]
[352843067,1739362167977,-500.0,0.00010961,2]
[352843068,1739362167999,-500.0,0.00010961,2]
[352843069,1739362168020,-500.0,0.00010961,2]
[352843070,1739362168043,-225.20420978,0.00010961,2]
[352843071,1739362168065,-500.0,0.00010961,2]
[352843072,1739362168086,-500.0,0.00010961,2]
[352843073,1739362168107,-500.0,0.00010961,2]
[352843074,1739362168129,-500.0,0.00010961,2]
[352843075,1739362168150,-500.0,0.00010961,2]
[352843076,1739362168172,-500.0,0.00010961,2]
[352843077,1739362168197,-500.0,0.00010961,2]